bitfinex/quotes_SOLUSD_20230404
["timestamp","ask_amount","ask_price","bid_price","bid_amount"]
[1680615904813,40.0,20.877,20.857,142.03556208]
[1680615905416,40.0,20.877,20.858,20.0]
[1680615905618,40.0,20.877,20.859,17.0]
[1680615905806,40.0,20.877,20.857,142.03556208]
[1680615906006,20.0,20.877,20.857,142.03556208]
[1680615906309,129.2258,20.878,20.857,142.03556208]
[1680615906513,41.0,20.88,20.859,20.0]
[1680615906717,41.0,20.88,20.86,37.0]
[1680615906910,41.0,20.88,20.86,44.12336208]
[1680615907110,41.0,20.88,20.861,7.12336208]
[1680615907305,19.155,20.883,20.862,17.0]
[1680615907511,19.155,20.883,20.863,20.0]
[1680615907708,19.155,20.883,20.864,17.0]
[1680615907918,19.155,20.883,20.864,24.12336208]
[1680615908114,0.39766051,20.879,20.864,24.12336208]
[1680615908300,0.39766051,20.879,20.865,7.12336208]
[1680615908502,0.39766051,20.879,20.866,17.0]
[1680615908813,0.39766051,20.879,20.866,24.12336208]
[1680615909016,19.155,20.883,20.867,117.4984]
[1680615909596,110.7173,20.886,20.867,117.4984]
[1680615909803,20.0,20.885,20.868,17.0]
[1680615910105,20.0,20.885,20.869,7.12336208]
[1680615910397,129.8693,20.886,20.87,37.0]
[1680615910800,129.8693,20.886,20.871,7.12336208]
[1680615910997,129.8693,20.886,20.871,27.12336208]
[1680615911204,129.8693,20.886,20.871,7.12336208]
[1680615911404,129.8693,20.886,20.872,7.12336208]
[1680615911616,110.63032199,20.886,20.873,17.0]
[1680615911816,14.6895999,20.888,20.873,17.0]
[1680615912119,108.4612,20.889,20.874,7.12336208]
[1680615912419,0.3995504,20.885,20.875,17.0]
[1680615912917,0.3995504,20.885,20.875,24.12336208]
[1680615913413,0.3995504,20.885,20.876,20.0]
[1680615913722,0.3995504,20.885,20.877,17.0]
[1680615914103,52.63674448,20.896,20.877,24.12336208]
[1680615914308,20.0,20.895,20.878,20.0]
[1680615914510,20.0,20.895,20.879,17.0]
[1680615914709,20.0,20.895,20.878,20.0]
[1680615914900,20.0,20.895,20.879,17.0]
[1680615915105,0.36042027,20.884,20.879,37.0]
[1680615915303,0.36042027,20.884,20.88,20.0]
[1680615915520,0.36042027,20.884,20.881,37.0]
[1680615916021,130.7342,20.9,20.881,44.12336208]
[1680615916415,130.7342,20.9,20.882,20.0]
[1680615916616,130.7342,20.9,20.883,17.0]
[1680615916921,130.7342,20.9,20.882,27.12336208]
[1680615917122,89.7342,20.9,20.883,17.0]
[1680615917322,89.7342,20.9,20.884,20.0]
[1680615917524,89.7342,20.9,20.885,17.0]
[1680615918309,89.7342,20.9,20.886,20.0]
[1680615918621,89.7342,20.9,20.887,17.0]
[1680615918804,113.4007,20.904,20.887,17.0]
[1680615919216,0.32914071,20.899,20.887,17.0]
[1680615919428,0.32914071,20.899,20.887,24.12336208]
[1680615920020,113.4007,20.904,20.888,20.0]
[1680615920329,113.4007,20.904,20.89,20.0]
[1680615920511,113.4007,20.904,20.891,37.0]
[1680615920706,113.4007,20.904,20.891,44.12336208]
[1680615920908,14.52870801,20.908,20.891,44.12336208]
[1680615921224,0.29782622,20.898,20.893,20.0]
[1680615921726,0.29782622,20.898,20.893,27.12336208]
[1680615922030,171.6853,20.91,20.893,27.12336208]
[1680615922420,171.6853,20.91,20.893,7.12336208]
[1680615922929,185.92895604,20.91,20.893,7.12336208]
[1680615923120,0.29751171,20.897,20.893,7.12336208]
[1680615924033,20.0,20.909,20.893,7.12336208]
[1680615925023,0.29719716,20.896,20.893,7.12336208]
[1680615926039,20.0,20.909,20.893,7.12336208]
[1680615926511,185.92895604,20.91,20.893,7.12336208]
[1680615927031,0.29688258,20.895,20.893,7.12336208]
[1680615928026,20.0,20.909,20.893,7.12336208]
[1680615928418,20.0,20.909,20.891,20.0]
[1680615928419,17.0,20.908,20.891,20.0]
[1680615928727,17.0,20.908,20.89,7.12336208]
[1680615928924,185.92895604,20.91,20.891,20.0]
[1680615929126,0.29656798,20.894,20.891,20.0]
[1680615929318,0.29656798,20.894,20.891,27.12336208]
[1680615930127,185.92895604,20.91,20.892,20.0]
[1680615930929,185.92895604,20.91,20.893,17.0]
[1680615930930,166.79895604,20.91,20.893,17.0]
[1680615932021,0.3012839,20.909,20.893,17.0]
[1680615933117,20.3012839,20.909,20.892,7.12336208]
[1680615933727,0.3012839,20.909,20.892,7.12336208]
[1680615933938,114.812,20.908,20.892,7.12336208]
[1680615939943,0.3006555,20.907,20.892,7.12336208]
[1680615943329,0.3006555,20.907,20.893,17.0]
[1680615945449,41.23431154,20.91,20.894,20.0]
[1680615945654,41.23431154,20.91,20.895,17.0]
[1680615946036,0.28834126,20.906,20.895,17.0]
[1680615947130,41.23431154,20.91,20.895,17.0]
[1680615950458,17.0,20.909,20.891,20.0]
[1680615950758,17.0,20.909,20.89,20.0]
[1680615950960,20.0,20.908,20.89,20.0]
[1680615951140,17.0,20.907,20.89,20.0]
[1680615951335,20.0,20.908,20.89,20.0]
[1680615951557,20.0,20.908,20.89,27.12336208]
[1680615951751,113.8326,20.909,20.89,27.12336208]
[1680615952059,113.8326,20.909,20.891,20.0]
[1680615952261,113.8326,20.909,20.892,20.0]
[1680615952558,113.8326,20.909,20.893,20.0]
[1680615952937,113.8326,20.909,20.894,17.0]
[1680615954039,113.8326,20.909,20.892,20.0]
[1680615954259,113.8326,20.909,20.893,17.0]
[1680615955049,17.0,20.908,20.893,17.0]
[1680615956155,17.0,20.908,20.892,20.0]
[1680615959168,113.8326,20.909,20.893,20.0]
[1680615959343,113.8326,20.909,20.894,17.0]
[1680615960662,113.8326,20.909,20.893,17.0]
[1680615960845,113.8326,20.909,20.894,20.0]
[1680615961047,113.8326,20.909,20.895,17.0]
[1680615961461,113.8326,20.909,20.895,24.12336208]
[1680615961853,113.8326,20.909,20.896,20.0]
[1680615962053,113.8326,20.909,20.897,17.0]
[1680615964657,113.8326,20.909,20.896,20.0]
[1680615966451,113.8326,20.909,20.897,17.0]
[1680615966646,113.8326,20.909,20.896,20.0]
[1680615966955,39.132,20.908,20.886,34.63720935]
[1680615967154,19.132,20.908,20.889,20.0]
[1680615967465,19.132,20.908,20.89,20.0]
[1680615967664,17.0,20.907,20.89,20.0]
[1680615967847,19.132,20.908,20.89,20.0]
[1680615968253,17.0,20.907,20.89,20.0]
[1680615968474,17.0,20.907,20.891,17.0]
[1680615968673,17.0,20.907,20.892,20.0]
[1680615968867,20.0,20.906,20.892,20.0]
[1680615969071,17.0,20.905,20.892,20.0]
[1680615969254,17.0,20.905,20.888,20.0]
[1680615970265,17.0,20.906,20.889,17.0]
[1680615970476,17.0,20.906,20.89,20.0]
[1680615971570,19.132,20.908,20.891,17.0]
[1680615971774,17.0,20.907,20.892,20.0]
[1680615972377,113.8326,20.909,20.892,20.0]
[1680615972674,113.8326,20.909,20.894,20.0]
[1680615973056,113.8326,20.909,20.895,24.12336208]
[1680615973777,113.8326,20.909,20.895,7.12336208]
[1680615974868,113.8326,20.909,20.896,17.0]
[1680615980262,113.8326,20.909,20.897,20.0]
[1680615980453,113.8326,20.909,20.898,17.0]
[1680615981372,58.42526361,20.918,20.898,24.12336208]
[1680615981678,115.4251,20.916,20.899,20.0]
[1680615981862,115.4251,20.916,20.9,17.0]
[1680615982174,115.4251,20.916,20.901,20.0]
[1680615982370,115.4251,20.916,20.902,17.0]
[1680615982577,115.4251,20.916,20.903,20.0]
[1680615982769,19.125,20.915,20.903,20.0]
[1680615982965,19.125,20.915,20.899,20.0]
[1680615983165,19.125,20.915,20.896,7.12336208]
[1680615983366,19.125,20.915,20.897,37.0]
[1680615983666,19.125,20.915,20.898,20.0]
[1680615983864,19.125,20.915,20.899,17.0]
[1680615984065,19.125,20.915,20.9,20.0]
[1680615984863,19.125,20.915,20.897,7.12336208]
[1680615985075,73.629,20.91,20.891,20.0]
[1680615985262,27.01,20.9,20.886,34.63720935]
[1680615985573,27.01,20.9,20.886,20.0]
[1680615985772,92.82471796,20.899,20.886,20.0]
[1680615986281,185.14711796,20.899,20.886,20.0]
[1680615986666,20.0,20.898,20.886,20.0]
[1680615987075,75.82471796,20.898,20.886,20.0]
[1680615988568,17.0,20.897,20.886,20.0]
[1680615989889,75.82471796,20.898,20.886,20.0]
[1680615990081,17.0,20.897,20.886,20.0]
[1680615991967,55.82471796,20.898,20.886,20.0]
[1680615992367,17.0,20.897,20.886,20.0]
[1680615995379,55.82471796,20.898,20.886,20.0]
[1680615995885,17.0,20.897,20.886,20.0]
[1680616000086,17.0,20.897,20.879,20.0]
[1680616000386,17.0,20.897,20.881,20.0]
[1680616000593,17.0,20.897,20.882,20.0]
[1680616001285,17.0,20.897,20.881,20.0]
[1680616001693,17.0,20.897,20.882,20.0]
[1680616002577,55.82471796,20.898,20.882,20.0]
[1680616002777,109.3224,20.899,20.883,17.0]
[1680616005391,17.0,20.898,20.883,17.0]
[1680616005693,17.0,20.898,20.882,20.0]
[1680616007094,17.0,20.898,20.881,20.0]
[1680616007281,17.0,20.898,20.882,17.0]
[1680616007481,17.0,20.898,20.883,20.0]
[1680616007982,109.3224,20.899,20.883,20.0]
[1680616008482,17.0,20.898,20.883,20.0]
[1680616010387,109.3224,20.899,20.884,17.0]
[1680616012604,109.3224,20.899,20.885,20.0]
[1680616012895,109.3224,20.899,20.886,17.0]
[1680616013278,109.3224,20.899,20.884,17.0]
[1680616016996,109.3224,20.899,20.885,20.0]
[1680616017194,109.3224,20.899,20.886,17.0]
[1680616018984,112.4608,20.9,20.887,20.0]
[1680616019188,115.2338,20.908,20.888,17.0]
[1680616019383,115.2338,20.908,20.89,40.84]
[1680616019598,33.31452726,20.918,20.891,37.0]
[1680616019906,117.3257,20.917,20.892,6.27101913]
[1680616020112,117.3257,20.917,20.893,17.0]
[1680616020400,117.3257,20.917,20.894,20.0]
[1680616020606,117.3257,20.917,20.895,17.0]
[1680616021101,20.0,20.916,20.896,20.0]
[1680616021297,117.3257,20.917,20.897,17.0]
[1680616022201,20.0,20.916,20.897,17.0]
[1680616022788,117.3257,20.917,20.897,17.0]
[1680616023191,20.0,20.916,20.897,17.0]
[1680616023705,117.3257,20.917,20.897,17.0]
[1680616024806,117.3257,20.917,20.898,27.12336208]
[1680616025103,117.3257,20.917,20.9,20.0]
[1680616025304,117.3257,20.917,20.901,37.0]
[1680616028311,17.0,20.916,20.901,37.0]
[1680616028618,17.0,20.916,20.901,20.0]
[1680616028790,19.126,20.914,20.894,20.0]
[1680616029106,20.0,20.913,20.89,65.42717016]
[1680616029297,17.0,20.912,20.893,20.0]
[1680616029498,20.0,20.908,20.893,20.0]
[1680616029996,20.0,20.908,20.893,27.12336208]
[1680616030197,17.0,20.907,20.893,20.0]
[1680616030403,17.0,20.907,20.89,20.0]
[1680616030602,17.0,20.907,20.89,27.12336208]
[1680616031000,20.0,20.906,20.89,27.12336208]
[1680616031595,20.0,20.906,20.89,17.12336208]
[1680616032008,20.0,20.906,20.89,24.24672416]
[1680616032210,17.0,20.905,20.89,24.24672416]
[1680616036601,39.133,20.906,20.89,17.12336208]
[1680616036809,17.0,20.905,20.89,17.12336208]
[1680616037009,20.0,20.904,20.89,17.12336208]
[1680616037212,17.0,20.903,20.887,20.0]
[1680616039426,20.0,20.904,20.887,20.0]
[1680616039632,20.0,20.904,20.888,17.0]
[1680616039822,17.0,20.903,20.889,20.0]
[1680616040120,17.0,20.903,20.886,14.56254262]
[1680616040426,17.0,20.903,20.87,81.88]
[1680616040616,17.0,20.903,20.882,17.0]
[1680616041329,17.0,20.903,20.883,20.0]
[1680616041625,17.0,20.903,20.884,17.0]
[1680616042025,149.2162,20.906,20.884,17.0]
[1680616042214,110.0832,20.906,20.884,24.12336208]
[1680616042430,110.0832,20.906,20.885,5.79787563]
[1680616042431,20.0,20.905,20.885,5.79787563]
[1680616042631,20.0,20.905,20.886,17.0]
[1680616042823,20.0,20.905,20.887,20.0]
[1680616043023,20.0,20.905,20.888,17.0]
[1680616043424,20.0,20.905,20.89,20.0]
[1680616043622,20.0,20.905,20.891,17.0]
[1680616044021,110.0832,20.906,20.891,17.0]
[1680616044338,110.0832,20.906,20.892,20.0]
[1680616044528,110.0832,20.906,20.893,17.0]
[1680616044732,110.0832,20.906,20.893,24.12336208]
[1680616045632,110.0832,20.906,20.893,7.12336208]
[1680616045815,20.0,20.904,20.884,4.74105743]
[1680616046019,20.0,20.904,20.888,7.12336208]
[1680616046214,20.0,20.904,20.889,20.0]
[1680616046624,20.0,20.904,20.889,27.12336208]
[1680616047731,20.0,20.904,20.889,20.0]
[1680616047932,20.0,20.904,20.886,20.0]
[1680616048128,20.0,20.904,20.887,17.0]
[1680616048328,20.0,20.904,20.888,20.0]
[1680616048536,20.0,20.904,20.889,17.0]
[1680616048918,37.0,20.905,20.89,20.0]
[1680616049234,37.0,20.905,20.89,27.12336208]
[1680616049929,17.0,20.905,20.89,27.12336208]
[1680616050640,20.0,20.904,20.89,27.12336208]
[1680616050938,17.0,20.905,20.89,27.12336208]
[1680616052843,20.0,20.904,20.89,27.12336208]
[1680616053024,17.0,20.905,20.89,27.12336208]
[1680616053538,20.0,20.904,20.89,27.12336208]
[1680616053838,37.0,20.905,20.89,27.12336208]
[1680616054038,17.0,20.905,20.89,27.12336208]
[1680616054241,110.0832,20.906,20.89,27.12336208]
[1680616054440,110.0832,20.906,20.891,24.12336208]
[1680616061926,17.0,20.905,20.891,7.12336208]
[1680616062138,17.0,20.905,20.89,20.0]
[1680616062445,17.0,20.905,20.891,20.0]
[1680616063231,20.0,20.904,20.891,20.0]
[1680616063431,20.0,20.904,20.889,20.0]
[1680616064647,20.0,20.899,20.884,38.29047]
[1680616065535,17.0,20.898,20.884,38.29047]
[1680616065840,20.0,20.897,20.884,38.29047]
[1680616066041,17.0,20.896,20.884,38.29047]
[1680616066435,20.0,20.895,20.884,38.29047]
[1680616066638,17.0,20.894,20.884,38.29047]
[1680616068948,17.0,20.894,20.878,120.25866208]
[1680616069139,17.0,20.894,20.879,37.0]
[1680616069543,20.0,20.895,20.88,7.12336208]
[1680616069842,170.4477,20.9,20.881,57.0]
[1680616070351,115.9377,20.9,20.882,7.12336208]
[1680616070540,115.9377,20.9,20.884,4.71190929]
[1680616070746,54.51,20.91,20.885,20.0]
[1680616071044,54.51,20.91,20.886,37.0]
[1680616071358,54.51,20.91,20.888,20.0]
[1680616071531,27.26,20.91,20.889,37.0]
[1680616071732,27.26,20.91,20.89,4.76779797]
[1680616071933,27.26,20.91,20.891,17.0]
[1680616072255,20.0,20.909,20.892,7.12336208]
[1680616072473,20.0,20.909,20.893,17.0]
[1680616072660,20.0,20.905,20.892,7.12336208]
[1680616073042,20.0,20.909,20.892,7.12336208]
[1680616073243,40.84,20.91,20.892,7.12336208]
[1680616073453,40.84,20.91,20.893,17.0]
[1680616073954,40.84,20.91,20.894,7.12336208]
[1680616074340,20.0,20.909,20.894,7.12336208]
[1680616075337,40.84,20.91,20.894,7.12336208]
[1680616075650,20.0,20.909,20.894,7.12336208]
[1680616079648,20.0,20.905,20.894,7.12336208]
[1680616081754,20.0,20.905,20.894,7.12336208]
[1680616084761,20.0,20.905,20.89,20.0]
[1680616084965,20.0,20.905,20.891,44.12336208]
[1680616085561,20.0,20.905,20.892,27.12336208]
[1680616085855,20.0,20.905,20.893,24.12336208]
[1680616086448,20.0,20.905,20.894,7.12336208]
[1680616086654,20.0,20.905,20.895,17.0]
[1680616087547,20.0,20.905,20.895,24.12336208]
[1680616089450,40.84,20.91,20.895,24.12336208]
[1680616089647,110.9633,20.911,20.895,24.12336208]
[1680616090367,110.9633,20.911,20.895,7.12336208]
[1680616090565,110.9633,20.911,20.896,17.0]
[1680616091065,110.9633,20.911,20.896,24.12336208]
[1680616092748,119.8858,20.914,20.896,24.12336208]
[1680616092968,119.8858,20.914,20.898,6.37219788]
[1680616093265,119.8858,20.914,20.899,24.12336208]
[1680616093475,119.8858,20.914,20.9,20.0]
[1680616093759,119.8858,20.914,20.901,17.0]
[1680616093963,119.8858,20.914,20.901,24.12336208]
[1680616094353,119.8858,20.914,20.902,27.12336208]
[1680616094568,119.8858,20.914,20.903,17.0]
[1680616095687,425.02980065,20.924,20.903,17.0]
[1680616095848,117.5721,20.921,20.904,7.12336208]
[1680616096049,117.5721,20.921,20.905,17.0]
[1680616096370,117.5721,20.921,20.906,27.12336208]
[1680616096552,117.5721,20.921,20.907,44.01299097]
[1680616096751,117.5721,20.921,20.907,34.13635305]
[1680616096955,136.6911,20.921,20.907,20.0]
[1680616097257,117.5721,20.921,20.902,20.0]
[1680616097961,117.5721,20.921,20.903,7.32045664]
[1680616098158,24.123362,20.917,20.904,17.0]
[1680616098348,24.123362,20.917,20.904,24.12336208]
[1680616098550,24.123362,20.917,20.905,7.12336208]
[1680616098753,24.123362,20.917,20.906,17.0]
[1680616101265,24.123362,20.917,20.907,20.0]
[1680616101464,24.123362,20.917,20.908,17.0]
[1680616102374,24.123362,20.917,20.909,47.12336208]
[1680616102561,24.123362,20.917,20.91,17.0]
[1680616102755,24.123362,20.917,20.911,20.0]
[1680616103179,24.123362,20.917,20.912,20.0]
[1680616104367,24.123362,20.917,20.911,20.0]
[1680616104581,24.123362,20.917,20.912,17.0]
[1680616105185,24.123362,20.917,20.911,20.0]
[1680616105367,24.123362,20.917,20.912,17.0]
[1680616106965,24.123362,20.917,20.912,24.12336208]
[1680616107172,24.123362,20.917,20.913,20.0]
[1680616107373,24.123362,20.917,20.914,17.0]
[1680616113491,113.2633,20.927,20.914,17.0]
[1680616113880,113.2633,20.927,20.914,15.0]
[1680616114878,113.2633,20.927,20.912,7.12336208]
[1680616115900,113.2633,20.927,20.913,17.0]
[1680616116286,113.2633,20.927,20.913,24.12336208]
[1680616116892,113.2633,20.927,20.913,7.12336208]
[1680616117096,20.0,20.926,20.911,20.0]
[1680616117294,17.0,20.925,20.907,7.12336208]
[1680616117483,36.115,20.925,20.908,20.0]
[1680616118090,108.3979,20.924,20.909,20.0]
[1680616118396,108.3979,20.924,20.91,37.0]
[1680616119084,108.3979,20.924,20.91,44.12336208]
[1680616120091,20.0,20.923,20.91,20.0]
[1680616120482,20.0,20.923,20.908,20.0]
[1680616120685,115.1747,20.922,20.908,20.0]
[1680616120990,115.1747,20.922,20.908,27.12336208]
[1680616122383,115.1747,20.922,20.909,17.0]
[1680616122583,115.1747,20.922,20.91,20.0]
[1680616124395,115.1747,20.922,20.903,20.0]
[1680616124605,20.0,20.921,20.904,17.0]
[1680616124788,20.0,20.921,20.903,17.0]
[1680616125391,20.0,20.921,20.903,24.12336208]
[1680616128000,17.0,20.92,20.903,24.12336208]
[1680616128711,57.55,20.92,20.903,24.12336208]
[1680616129510,20.0,20.919,20.903,24.12336208]
[1680616129705,40.55,20.92,20.904,20.0]
[1680616129909,115.1747,20.922,20.905,17.0]
[1680616130116,115.1747,20.922,20.905,24.12336208]
[1680616131691,17.0,20.921,20.905,24.12336208]
[1680616131890,115.1747,20.922,20.905,24.12336208]
[1680616132110,27.23,20.92,20.905,24.12336208]
[1680616132537,36.121,20.919,20.905,7.12336208]
[1680616132691,36.121,20.919,20.902,14.34398748]
[1680616133012,20.0,20.918,20.895,26.1796943]
[1680616133205,17.0,20.917,20.899,20.0]
[1680616133789,20.0,20.916,20.9,24.12336208]
[1680616134003,20.0,20.916,20.901,20.0]
[1680616134205,20.0,20.918,20.901,27.12336208]
[1680616134406,17.0,20.917,20.902,7.12336208]
[1680616135107,20.0,20.918,20.902,7.12336208]
[1680616135295,17.0,20.917,20.902,7.12336208]
[1680616136002,17.0,20.918,20.902,7.12336208]
[1680616136817,0.68777387,20.917,20.902,7.12336208]
[1680616137699,20.68777387,20.917,20.902,7.12336208]
[1680616138220,109.9952,20.916,20.902,7.12336208]
[1680616139901,17.0,20.915,20.902,7.12336208]
[1680616142713,20.0,20.914,20.895,26.1796943]
[1680616142902,20.0,20.914,20.896,17.0]
[1680616143409,20.0,20.914,20.897,7.12336208]
[1680616143615,20.0,20.914,20.898,17.0]
[1680616144010,20.0,20.914,20.898,24.12336208]
[1680616147021,109.9952,20.916,20.898,24.12336208]
[1680616147221,109.9952,20.916,20.9,7.82171269]
[1680616147536,109.9952,20.916,20.902,20.0]
[1680616147713,115.1747,20.922,20.903,7.35174825]
[1680616147907,115.1747,20.922,20.904,17.0]
[1680616148226,115.1747,20.922,20.905,20.0]
[1680616148400,115.1747,20.922,20.906,17.0]
[1680616148804,115.1747,20.922,20.906,24.12336208]
[1680616152128,115.1747,20.922,20.907,7.12336208]
[1680616152416,115.1747,20.922,20.908,17.0]
[1680616153621,115.1747,20.922,20.907,7.12336208]
[1680616153810,17.0,20.921,20.907,7.12336208]
[1680616154010,20.0,20.92,20.907,7.12336208]
[1680616154214,17.0,20.921,20.902,20.0]
[1680616154412,17.0,20.921,20.903,24.12336208]
[1680616154809,17.0,20.921,20.904,7.12336208]
[1680616155035,17.0,20.921,20.905,17.0]
[1680616156421,115.1747,20.922,20.905,17.0]
[1680616156721,115.1747,20.922,20.905,24.12336208]
[1680616157328,20.0,20.92,20.905,24.12336208]
[1680616157814,17.0,20.921,20.905,24.12336208]
[1680616158327,17.0,20.921,20.905,7.12336208]
[1680616158627,20.0,20.92,20.905,7.12336208]
[1680616158927,17.0,20.919,20.905,7.12336208]
[1680616161820,17.0,20.92,20.905,7.12336208]
[1680616162130,27.18,20.92,20.905,7.12336208]
[1680616162317,27.18,20.92,20.906,17.0]
[1680616162515,20.0,20.919,20.905,7.12336208]
[1680616162831,27.18,20.92,20.906,7.12336208]
[1680616163034,17.0,20.919,20.906,7.12336208]
[1680616167216,17.0,20.919,20.901,34.31489209]
[1680616167416,17.0,20.919,20.904,7.12336208]
[1680616170345,17.0,20.919,20.901,34.31489209]
[1680616170646,20.0,20.918,20.903,7.12336208]
[1680616170823,20.0,20.916,20.903,7.12336208]
[1680616171135,27.23,20.91,20.895,56.74240151]
[1680616171323,27.23,20.91,20.892,26.35989199]
[1680616171830,27.23,20.91,20.891,120.06246208]
[1680616172020,17.0,20.909,20.891,120.06246208]
[1680616173333,17.0,20.909,20.892,17.0]
[1680616173728,17.0,20.909,20.893,7.12336208]
[1680616173932,17.0,20.909,20.894,17.0]
[1680616174255,108.8235,20.908,20.895,7.12336208]
[1680616175337,109.50422182,20.908,20.895,7.12336208]
[1680616176245,20.0,20.907,20.895,7.12336208]
[1680616176548,20.0,20.907,20.89,14.6919067]
[1680616176856,17.0,20.906,20.891,20.0]
[1680616177149,17.0,20.906,20.891,27.12336208]
[1680616177350,17.0,20.906,20.892,7.12336208]
[1680616179456,108.8235,20.908,20.893,17.0]
[1680616179646,108.8235,20.908,20.892,7.12336208]
[1680616179950,20.0,20.907,20.894,7.12336208]
[1680616180742,17.0,20.906,20.894,7.12336208]
[1680616181133,20.0,20.905,20.891,20.0]
[1680616181435,17.0,20.904,20.89,20.0]
[1680616181843,17.0,20.904,20.891,7.12336208]
[1680616182747,17.0,20.906,20.891,7.12336208]
[1680616184353,17.0,20.907,20.891,7.12336208]
[1680616184755,108.8235,20.908,20.891,7.12336208]
[1680616184953,108.8235,20.908,20.892,17.0]
[1680616185363,108.8235,20.908,20.893,7.12336208]
[1680616186247,19.133,20.906,20.89,20.0]
[1680616186445,17.0,20.905,20.888,20.0]
[1680616186844,17.0,20.905,20.888,27.12336208]
[1680616187048,17.0,20.905,20.889,20.0]
[1680616187251,17.0,20.905,20.89,20.0]
[1680616187444,17.0,20.906,20.89,27.12336208]
[1680616187650,108.8235,20.908,20.891,7.12336208]
[1680616187856,17.0,20.907,20.892,17.0]
[1680616188234,17.0,20.907,20.893,7.12336208]
[1680616189641,36.132,20.907,20.89,20.0]
[1680616189846,20.0,20.906,20.888,20.0]
[1680616190155,17.0,20.905,20.888,20.0]
[1680616190354,17.0,20.905,20.888,27.12336208]
[1680616190561,17.0,20.905,20.889,7.12336208]
[1680616190758,17.0,20.905,20.89,20.0]
[1680616191150,17.0,20.905,20.89,27.12336208]
[1680616191764,27.23,20.9,20.882,110.4186]
[1680616192143,17.0,20.899,20.879,7.12336208]
[1680616192375,20.0,20.898,20.88,20.0]
[1680616192574,17.0,20.897,20.88,20.0]
[1680616192755,17.0,20.897,20.881,7.12336208]
[1680616193063,20.0,20.896,20.875,53.8449902]
[1680616193269,20.0,20.896,20.877,7.12336208]
[1680616193447,17.0,20.895,20.877,7.12336208]
[1680616194267,17.0,20.895,20.878,20.0]
[1680616194562,17.0,20.895,20.879,7.12336208]
[1680616195069,27.23,20.89,20.875,14.58801762]
[1680616195251,113.1901,20.889,20.872,20.0]
[1680616195666,113.1901,20.889,20.873,7.12336208]
[1680616195964,113.1901,20.889,20.874,17.0]
[1680616196457,113.1901,20.889,20.875,7.12336208]
[1680616196660,113.1901,20.889,20.887,19.143841]
[1680616196845,20.0,20.894,20.887,19.143841]
[1680616197042,17.0,20.893,20.887,19.143841]
[1680616198466,20.0,20.894,20.887,19.143841]
[1680616198667,17.0,20.893,20.887,19.143841]
[1680616198864,17.0,20.894,20.887,19.143841]
[1680616199061,170.54466208,20.9,20.887,19.143841]
[1680616199263,163.4213,20.9,20.887,19.143841]
[1680616199560,17.0,20.898,20.887,19.143841]
[1680616199759,20.0,20.897,20.887,19.143841]
[1680616199959,17.0,20.896,20.887,19.143841]
[1680616200974,17.0,20.898,20.887,19.143841]